bitfinex-derivatives/quotes_BTCF0:USTF0_20260314
["timestamp","ask_amount","ask_price","bid_price","bid_amount"]
[1773459635316,0.042136,71188.0,71174.0,0.0014]
[1773459635613,0.0014,71187.0,71155.0,0.07807071]
[1773459635818,0.07871896,71186.0,71161.0,0.07807071]
[1773459636003,0.042137,71185.0,71172.0,0.042144]
[1773459636207,0.042138,71184.0,71172.0,0.042144]
[1773459636403,0.042138,71183.0,71171.0,0.0014]
[1773459637314,0.042134,71191.0,71172.0,0.07807071]
[1773459637518,0.042134,71190.0,71172.0,0.07807071]
[1773459637818,0.07731896,71196.0,71172.0,0.07807071]
[1773459638016,0.07731896,71194.0,71172.0,0.07807071]
[1773459639120,0.042135,71188.0,71175.0,0.042142]
[1773459639610,0.042135,71188.0,71176.0,0.042142]
[1773459641219,0.042135,71188.0,71172.0,0.07807071]
[1773459641220,0.042136,71186.0,71175.0,0.042143]
[1773459641419,0.042135,71188.0,71175.0,0.042143]
[1773459643117,0.042137,71186.0,71174.0,0.042143]
[1773459643519,0.042137,71186.0,71175.0,0.042143]
[1773459644819,0.043535,71188.0,71175.0,0.042143]
[1773459645319,0.042136,71187.0,71175.0,0.042143]
[1773459645519,0.042136,71187.0,71176.0,0.042142]
[1773459649516,0.0014,71188.0,71177.0,0.042141]
[1773459650118,0.0014,71188.0,71175.0,0.042142]
[1773459650926,0.042136,71187.0,71175.0,0.042142]
[1773459653024,0.042136,71187.0,71175.0,0.12283378]
[1773459654726,0.07512618,71188.0,71171.0,0.0014]
[1773459654930,0.07512618,71188.0,71172.0,0.042144]
[1773459655126,0.042138,71183.0,71172.0,0.032144]
[1773459657031,0.042139,71182.0,71171.0,0.0014]
[1773459657223,0.07512618,71188.0,71171.0,0.0014]
[1773459657423,0.042139,71183.0,71171.0,0.0014]
[1773459659824,0.042139,71183.0,71172.0,0.042144]
[1773459660027,0.042137,71185.0,71173.0,0.042144]
[1773459661138,0.0014,71187.0,71173.0,0.042144]
[1773459661139,0.042138,71184.0,71173.0,0.042144]
[1773459662631,0.0014,71187.0,71174.0,0.08069178]
[1773459663134,0.0014,71187.0,71175.0,0.042143]
[1773459663527,0.042136,71186.0,71174.0,0.08069178]
[1773459663736,0.0014,71187.0,71173.0,0.042144]
[1773459663737,0.042137,71185.0,71173.0,0.042144]
[1773459664526,0.042137,71185.0,71171.0,0.0014]
[1773459664527,0.042138,71184.0,71171.0,0.0014]
[1773459664728,0.042138,71184.0,71172.0,0.042144]
[1773459668349,0.042137,71186.0,71171.0,0.0014]
[1773459668530,0.042137,71186.0,71171.0,0.08209178]
[1773459668838,0.043535,71188.0,71171.0,0.08209178]
[1773459669038,0.042135,71188.0,71171.0,0.08209178]
[1773459669241,0.0014,71187.0,71171.0,0.08209178]
[1773459669432,0.043536,71187.0,71175.0,0.042142]
[1773459670534,0.042136,71187.0,71175.0,0.042142]
[1773459670734,0.043536,71187.0,71175.0,0.042142]
[1773459671137,0.042136,71187.0,71175.0,0.042142]
[1773459671344,0.043536,71187.0,71175.0,0.042142]
[1773459671644,0.042136,71187.0,71175.0,0.042142]
[1773459671842,0.043536,71187.0,71175.0,0.042142]
[1773459672141,0.042136,71187.0,71175.0,0.042142]
[1773459672344,0.042136,71186.0,71175.0,0.042142]
[1773459675346,0.042136,71186.0,71171.0,0.08209178]
[1773459675347,0.042137,71185.0,71173.0,0.042144]
[1773459676640,0.042137,71185.0,71174.0,0.042143]
[1773459681649,0.043536,71187.0,71171.0,0.07617389]
[1773459681941,0.042136,71187.0,71171.0,0.07617389]
[1773459682147,0.043536,71187.0,71171.0,0.07617389]
[1773459682444,0.042136,71187.0,71171.0,0.07617389]
[1773459683146,0.042136,71187.0,71175.0,0.042142]
[1773459683548,0.042137,71185.0,71173.0,0.042144]
[1773459688845,0.07504947,71198.0,71171.0,0.07617389]
[1773459689044,0.042135,71189.0,71177.0,0.042141]
[1773459689248,0.043535,71189.0,71177.0,0.042141]
[1773459690151,0.043535,71188.0,71177.0,0.042141]
[1773459690551,0.042135,71188.0,71177.0,0.042141]
[1773459690749,0.043535,71188.0,71177.0,0.042141]
[1773459691555,0.042135,71188.0,71177.0,0.042141]
[1773459691751,0.043535,71188.0,71177.0,0.042141]
[1773459692050,0.042135,71188.0,71177.0,0.042141]
[1773459692264,0.043535,71188.0,71177.0,0.042141]
[1773459692553,0.042135,71188.0,71177.0,0.042141]
[1773459693742,0.043535,71188.0,71177.0,0.042141]
[1773459694555,0.042135,71188.0,71177.0,0.042141]
[1773459694760,0.043535,71188.0,71177.0,0.042141]
[1773459695054,0.042135,71188.0,71177.0,0.042141]
[1773459695254,0.043535,71188.0,71177.0,0.042141]
[1773459695556,0.042135,71188.0,71177.0,0.042141]
[1773459695856,0.043535,71188.0,71177.0,0.042141]
[1773459697551,0.042135,71188.0,71177.0,0.042141]
[1773459697752,0.043535,71188.0,71177.0,0.042141]
[1773459698051,0.042135,71188.0,71177.0,0.042141]
[1773459698257,0.043535,71188.0,71177.0,0.042141]
[1773459698556,0.042135,71188.0,71177.0,0.042141]
[1773459698754,0.043535,71188.0,71177.0,0.042141]
[1773459698957,0.07504947,71197.0,71172.0,0.07477389]
[1773459699145,0.042134,71190.0,71178.0,0.042141]
[1773459699350,0.0014,71189.0,71179.0,0.04214]
[1773459699549,0.042134,71190.0,71180.0,0.07290327]
[1773459699749,0.043534,71190.0,71179.0,0.04214]
[1773459701453,0.042134,71190.0,71179.0,0.04214]
[1773459701658,0.043534,71190.0,71179.0,0.04214]
[1773459702050,0.042133,71192.0,71180.0,0.042139]
[1773459702251,0.0014,71191.0,71180.0,0.042139]
[1773459702549,0.0014,71191.0,71182.0,0.042138]
[1773459702751,0.0014,71193.0,71182.0,0.042138]
[1773459703661,0.042133,71192.0,71180.0,0.11504327]
[1773459703846,0.042133,71192.0,71180.0,0.04214]
[1773459704754,0.043533,71192.0,71180.0,0.04214]
[1773459705057,0.042134,71191.0,71180.0,0.04214]
[1773459705848,0.11502527,71210.0,71180.0,0.07290327]
[1773459705849,0.0014,71192.0,71180.0,0.07290327]
[1773459706154,0.042131,71196.0,71181.0,0.07477389]
[1773459706350,0.042131,71195.0,71183.0,0.042138]
[1773459707453,0.07722641,71200.0,71180.0,0.07290327]
[1773459707650,0.0014,71201.0,71183.0,0.042138]
[1773459707856,0.07722641,71200.0,71183.0,0.042138]
[1773459708352,0.07290327,71210.0,71184.0,0.07149774]
[1773459708657,0.16754827,71214.0,71190.0,0.07290327]
[1773459708658,0.042126,71203.0,71190.0,0.07290327]
[1773459708962,0.042126,71203.0,71191.0,0.07289774]
[1773459712366,0.042127,71202.0,71191.0,0.0014]
[1773459715963,0.042125,71205.0,71192.0,0.042133]
[1773459716162,0.042126,71204.0,71192.0,0.042133]
[1773459718862,0.07811546,71205.0,71191.0,0.0014]
[1773459720065,0.042127,71203.0,71191.0,0.0014]
[1773459720865,0.042127,71202.0,71191.0,0.0014]
[1773459721368,0.07671546,71200.0,71188.0,0.0014]
[1773459721564,0.07671546,71200.0,71182.0,0.043538]
[1773459721871,0.07671546,71195.0,71182.0,0.0014]
[1773459722169,0.07811546,71195.0,71180.0,0.0014]
[1773459722360,0.07811546,71195.0,71180.0,0.043539]
[1773459722562,0.07671546,71208.0,71185.0,0.042137]
[1773459722765,0.04213,71197.0,71185.0,0.042137]
[1773459723263,0.07671546,71209.0,71186.0,0.0014]
[1773459723467,0.042129,71198.0,71186.0,0.043536]
[1773459724369,0.07671546,71204.0,71186.0,0.0014]
[1773459724671,0.07811546,71204.0,71186.0,0.0014]
[1773459725466,0.0014,71204.0,71190.0,0.07290327]
[1773459725775,0.042127,71203.0,71191.0,0.042133]
[1773459726571,0.042127,71202.0,71191.0,0.042133]
[1773459729275,0.07671546,71208.0,71189.0,0.042134]
[1773459729988,0.042128,71200.0,71189.0,0.042134]
[1773459733778,0.042135,71188.0,71177.0,0.042141]
[1773459733987,0.042134,71190.0,71178.0,0.0014]
[1773459734185,0.07671546,71191.0,71172.0,0.07337587]
[1773459734493,0.042135,71188.0,71176.0,0.042142]
[1773459734682,0.042136,71187.0,71172.0,0.07337587]
[1773459734886,0.042136,71187.0,71173.0,0.0014]
[1773459735085,0.042136,71187.0,71174.0,0.0014]
[1773459735397,0.07671546,71188.0,71175.0,0.0014]
[1773459735694,0.042138,71184.0,71174.0,0.0014]
[1773459735889,0.042137,71186.0,71174.0,0.0014]
[1773459736481,0.042137,71185.0,71174.0,0.0014]
[1773459737696,0.07671546,71184.0,71163.0,0.2500666]
[1773459737898,0.042141,71179.0,71166.0,0.042148]
[1773459738093,0.042141,71179.0,71167.0,0.042147]
[1773459739488,0.07671546,71181.0,71164.0,0.0014]
[1773459739695,0.07671546,71178.0,71164.0,0.0014]
[1773459740993,0.11885646,71178.0,71166.0,0.042148]
[1773459744394,0.04214,71180.0,71167.0,0.042147]
[1773459746394,0.042138,71184.0,71170.0,0.07290327]
[1773459746997,0.043538,71184.0,71172.0,0.042144]
[1773459747392,0.042138,71183.0,71172.0,0.042144]
[1773459747600,0.042138,71183.0,71170.0,0.11504459]
[1773459748800,0.042138,71183.0,71171.0,0.0014]
[1773459749393,0.042138,71183.0,71171.0,0.043545]
[1773459750798,0.0014,71184.0,71171.0,0.0014]
[1773459751098,0.07065702,71178.0,71170.0,0.0014]
[1773459751304,0.04214,71180.0,71167.0,0.043547]
[1773459751600,0.042141,71179.0,71167.0,0.043547]
[1773459752901,0.042141,71179.0,71168.0,0.042147]
[1773459755506,0.04214,71181.0,71169.0,0.042146]
[1773459755708,0.04214,71180.0,71169.0,0.042146]
[1773459756600,0.0014,71184.0,71170.0,0.14340032]
[1773459756800,0.0014,71184.0,71174.0,0.042143]
[1773459757002,0.0014,71186.0,71174.0,0.042143]
[1773459757700,0.042137,71185.0,71174.0,0.042143]
[1773459758206,0.042138,71184.0,71173.0,0.042144]
[1773459758599,0.043537,71186.0,71174.0,0.042143]
[1773459759905,0.042137,71186.0,71174.0,0.042143]
[1773459761304,0.0014,71189.0,71178.0,0.042141]
[1773459761604,0.043535,71189.0,71178.0,0.042141]
[1773459763406,0.042135,71189.0,71178.0,0.042141]
[1773459767608,0.042135,71189.0,71179.0,0.07289859]
[1773459767915,0.042135,71189.0,71178.0,0.042141]
[1773459768307,0.042133,71191.0,71179.0,0.04214]
[1773459768810,0.0014,71194.0,71180.0,0.07289859]
[1773459769008,0.0014,71194.0,71181.0,0.07134229]
[1773459769609,0.06980715,71203.0,71181.0,0.07134229]
[1773459769811,0.04213,71197.0,71185.0,0.042136]
[1773459770110,0.04213,71197.0,71181.0,0.07134229]
[1773459770111,0.042129,71199.0,71187.0,0.042135]
[1773459771208,0.043528,71201.0,71188.0,0.042134]
[1773459771406,0.042128,71200.0,71188.0,0.042134]
[1773459772003,0.042126,71204.0,71192.0,0.042132]
[1773459772207,0.0014,71204.0,71190.0,0.042134]
[1773459772907,0.0750898,71209.0,71191.0,0.042133]
[1773459773105,0.042124,71207.0,71192.0,0.042132]
[1773459773307,0.0014,71207.0,71193.0,0.07611643]
[1773459773617,0.04211,71230.0,71180.0,0.042139]
[1773459773618,0.0750898,71219.0,71198.0,0.07471643]
[1773459773811,0.042118,71217.0,71204.0,0.042126]
[1773459774017,0.04212,71214.0,71199.0,0.07611643]
[1773459774316,0.042124,71207.0,71199.0,0.0014]
[1773459776816,0.042123,71209.0,71199.0,0.0014]
[1773459777507,0.0750898,71207.0,71199.0,0.0014]
[1773459777707,0.1172148,71206.0,71199.0,0.0014]
[1773459777911,0.042125,71206.0,71198.0,0.0014]
[1773459778220,0.0750898,71208.0,71190.0,0.07429859]
[1773459778415,0.042125,71205.0,71193.0,0.042132]
[1773459779216,0.042124,71207.0,71194.0,0.042131]
[1773459779415,0.042125,71206.0,71194.0,0.042131]
[1773459779918,0.042128,71201.0,71191.0,0.0014]
[1773459781317,0.042126,71203.0,71190.0,0.042133]
[1773459781624,0.042126,71203.0,71191.0,0.0014]
[1773459781824,0.042126,71203.0,71190.0,0.042133]
[1773459782024,0.042129,71200.0,71187.0,0.042135]
[1773459782226,0.042129,71199.0,71187.0,0.042135]
[1773459782524,0.042129,71199.0,71188.0,0.0014]
[1773459782724,0.042129,71199.0,71187.0,0.042135]
[1773459782924,0.042128,71201.0,71188.0,0.043535]
[1773459783225,0.042128,71201.0,71189.0,0.042134]
[1773459783425,0.042126,71203.0,71190.0,0.043534]
[1773459783927,0.042127,71202.0,71190.0,0.043534]
[1773459784826,0.042128,71201.0,71190.0,0.043534]
[1773459785213,0.042128,71201.0,71190.0,0.0014]
[1773459786521,0.042128,71201.0,71190.0,0.043534]
[1773459787423,0.0750898,71206.0,71190.0,0.043534]
[1773459787731,0.042126,71204.0,71192.0,0.042132]
[1773459787931,0.042126,71204.0,71192.0,0.11684843]
[1773459788838,0.042126,71203.0,71192.0,0.11684843]
[1773459789837,0.042126,71203.0,71192.0,0.042132]
[1773459790336,0.042128,71201.0,71190.0,0.0014]
[1773459792438,0.042128,71201.0,71190.0,0.043534]
[1773459797244,0.042128,71201.0,71190.0,0.0014]
[1773459797545,0.042126,71203.0,71191.0,0.042133]
[1773459798445,0.042127,71202.0,71191.0,0.042133]
[1773459808150,0.042128,71201.0,71191.0,0.042133]
[1773459814157,0.042128,71201.0,71190.0,0.0014]
[1773459814350,0.042128,71200.0,71190.0,0.0014]
[1773459814748,0.042127,71202.0,71190.0,0.0014]
[1773459814949,0.042127,71202.0,71190.0,0.043534]
[1773459815255,0.042128,71201.0,71190.0,0.043534]
[1773459816247,0.11548222,71200.0,71188.0,0.042135]
[1773459816446,0.07335422,71199.0,71189.0,0.0014]
[1773459816651,0.07335422,71199.0,71185.0,0.042136]
[1773459816849,0.07335422,71199.0,71173.0,0.2500666]
[1773459817049,0.07335422,71191.0,71174.0,0.0014]
[1773459817252,0.042138,71184.0,71175.0,0.0014]
[1773459817451,0.042138,71184.0,71165.0,0.07286521]
[1773459817452,0.07335422,71187.0,71176.0,0.0014]
[1773459817654,0.042137,71185.0,71171.0,0.042145]
[1773459817858,0.07335422,71187.0,71172.0,0.0014]
[1773459818154,0.042138,71184.0,71172.0,0.042144]
[1773459818363,0.042138,71184.0,71173.0,0.0014]
[1773459820268,0.07335422,71191.0,71173.0,0.0014]
[1773459820954,0.042136,71188.0,71175.0,0.042142]
[1773459822756,0.042136,71187.0,71175.0,0.042142]
[1773459824656,0.042136,71187.0,71176.0,0.042142]
[1773459826364,0.07335422,71195.0,71173.0,0.07426521]
[1773459826562,0.042133,71192.0,71174.0,0.07082971]
[1773459826962,0.07335422,71195.0,71174.0,0.07082971]
[1773459827166,0.042132,71193.0,71174.0,0.07082971]
[1773459827362,0.042132,71193.0,71182.0,0.042138]
[1773459827561,0.042132,71193.0,71174.0,0.07082971]
[1773459827562,0.042133,71192.0,71181.0,0.0014]
[1773459827754,0.042134,71191.0,71181.0,0.0014]
[1773459829362,0.12664848,71205.0,71181.0,0.0014]
[1773459829363,0.62932583,71240.0,71181.0,0.0014]
[1773459829571,0.042128,71201.0,71186.0,0.07082971]
[1773459830071,0.04213,71197.0,71181.0,0.07222971]
[1773459830265,0.04213,71197.0,71185.0,0.042137]
[1773459830467,0.042131,71196.0,71183.0,0.042138]
[1773459830664,0.11353343,71196.0,71184.0,0.042137]
[1773459831366,0.07140243,71196.0,71185.0,0.042137]
[1773459831869,0.07140243,71196.0,71186.0,0.042136]
[1773459834065,0.07140243,71196.0,71181.0,0.0014]
[1773459834264,0.07148539,71192.0,71182.0,0.0014]
[1773459834571,0.07148539,71192.0,71170.0,0.07286091]
[1773459834572,0.07148539,71192.0,71183.0,0.0014]
[1773459834768,0.07148539,71187.0,71162.0,0.07338187]
[1773459834971,0.11362339,71184.0,71163.0,0.07478187]
[1773459835173,0.07148539,71180.0,71168.0,0.042147]
[1773459835671,0.07148539,71180.0,71169.0,0.042146]
[1773459835871,0.07148539,71180.0,71170.0,0.0014]
[1773459837272,0.07148539,71180.0,71170.0,0.043545]
[1773459838066,0.11362239,71185.0,71170.0,0.0014]
[1773459838973,0.11362239,71185.0,71172.0,0.042144]
[1773459839572,0.042138,71184.0,71172.0,0.042144]
[1773459840664,0.042138,71184.0,71170.0,0.043546]
[1773459841372,0.042138,71184.0,71171.0,0.042145]
[1773459841767,0.042138,71184.0,71170.0,0.0014]
[1773459841768,0.042138,71184.0,71172.0,0.042144]
[1773459842673,0.07148539,71191.0,71173.0,0.042143]
[1773459842974,0.07148539,71191.0,71170.0,0.07426091]
[1773459842975,0.042138,71184.0,71171.0,0.042145]
[1773459845778,0.042138,71184.0,71172.0,0.042144]
[1773459857690,0.07148539,71187.0,71170.0,0.11640591]
[1773459857983,0.07148539,71185.0,71170.0,0.043545]
[1773459858385,0.07426091,71190.0,71170.0,0.043545]
[1773459858386,0.07148539,71183.0,71170.0,0.043545]
[1773459858985,0.11362439,71182.0,71171.0,0.042145]
[1773459859189,0.07148539,71182.0,71172.0,0.042144]
[1773459860186,0.042138,71184.0,71172.0,0.042144]
[1773459860487,0.07148539,71196.0,71180.0,0.04214]
[1773459860679,0.19531573,71195.0,71180.0,0.07286091]
[1773459860985,0.042134,71191.0,71180.0,0.07286091]
[1773459861188,0.19531573,71190.0,71180.0,0.07286091]
[1773459861390,0.19531573,71189.0,71180.0,0.07286091]
[1773459861683,0.19531573,71188.0,71180.0,0.07286091]
[1773459862185,0.19531573,71187.0,71179.0,0.04214]
[1773459862385,0.042134,71190.0,71179.0,0.04214]
[1773459862588,0.19538763,71189.0,71179.0,0.04214]
[1773459862779,0.19538763,71188.0,71179.0,0.04214]
[1773459862978,0.19538763,71187.0,71179.0,0.04214]
[1773459863187,0.042134,71190.0,71179.0,0.04214]
[1773459863387,0.1954402,71189.0,71179.0,0.04214]
[1773459863589,0.1954402,71188.0,71179.0,0.04214]
[1773459863885,0.042134,71190.0,71179.0,0.04214]
[1773459864088,0.19544014,71189.0,71179.0,0.04214]
[1773459864288,0.19544014,71188.0,71179.0,0.04214]
[1773459864488,0.19544014,71187.0,71179.0,0.04214]
[1773459864676,0.042134,71190.0,71179.0,0.04214]
[1773459864881,0.19551608,71189.0,71179.0,0.04214]
[1773459865080,0.19551608,71188.0,71179.0,0.04214]
[1773459865385,0.19551608,71187.0,71179.0,0.04214]
[1773459865688,0.042134,71190.0,71179.0,0.04214]
[1773459865887,0.19550483,71189.0,71179.0,0.04214]
[1773459866183,0.19550483,71188.0,71179.0,0.04214]
[1773459866387,0.042134,71190.0,71179.0,0.04214]
[1773459866689,0.19549492,71189.0,71179.0,0.04214]
[1773459866988,0.19549492,71188.0,71179.0,0.04214]
[1773459867187,0.042134,71190.0,71179.0,0.04214]
[1773459867388,0.19548775,71189.0,71179.0,0.04214]
[1773459867588,0.19548775,71188.0,71179.0,0.04214]
[1773459867789,0.042134,71190.0,71179.0,0.04214]
[1773459867989,0.19548775,71189.0,71179.0,0.04214]
[1773459868288,0.042134,71190.0,71179.0,0.04214]
[1773459870794,0.07098631,71188.0,71178.0,0.0014]
[1773459870996,0.07098631,71188.0,71176.0,0.0014]
[1773459871181,0.07098631,71188.0,71177.0,0.0014]
[1773459871386,0.07098631,71188.0,71178.0,0.0014]
[1773459872091,0.042137,71186.0,71178.0,0.0014]
[1773459872891,0.042137,71186.0,71177.0,0.0014]
[1773459874292,0.042137,71185.0,71177.0,0.0014]
[1773459874680,0.042137,71185.0,71173.0,0.042144]
[1773459874884,0.042137,71185.0,71174.0,0.0014]
[1773459891014,0.11298158,71185.0,71174.0,0.0014]
[1773459891520,0.042138,71184.0,71174.0,0.0014]
[1773459896930,0.0673851,71183.0,71175.0,0.0014]
[1773459901527,0.0673851,71182.0,71155.0,0.11241849]
[1773459901726,0.1095251,71180.0,71170.0,0.07288025]
[1773459901927,0.1095251,71180.0,71171.0,0.0014]
[1773459902323,0.042141,71179.0,71171.0,0.0014]
[1773459903623,0.0673851,71208.0,71171.0,0.07166449]
[1773459903829,0.0673851,71197.0,71180.0,0.07288025]
[1773459904133,0.07288025,71210.0,71181.0,0.0014]
[1773459904134,0.0673851,71194.0,71181.0,0.0014]
[1773459904333,0.0673851,71192.0,71181.0,0.0014]
[1773459904533,0.0673851,71190.0,71181.0,0.0014]
[1773459904833,0.19864248,71189.0,71181.0,0.0014]
[1773459905032,0.19864248,71188.0,71181.0,0.0014]
[1773459905237,0.0673851,71190.0,71181.0,0.0014]
[1773459905434,0.19861378,71189.0,71181.0,0.0014]
[1773459905636,0.19861378,71188.0,71181.0,0.0014]
[1773459905932,0.0673851,71190.0,71181.0,0.0014]
[1773459906132,0.19861378,71189.0,71181.0,0.0014]
[1773459906332,0.19861378,71188.0,71181.0,0.0014]
[1773459906526,0.0673851,71190.0,71181.0,0.0014]
[1773459906726,0.19860984,71189.0,71181.0,0.0014]
[1773459906933,0.19860984,71188.0,71181.0,0.0014]
[1773459907135,0.0673851,71190.0,71181.0,0.0014]
[1773459907325,0.0673851,71188.0,71170.0,0.07288025]
[1773459907527,0.0673851,71184.0,71173.0,0.042144]
[1773459909733,0.19861619,71183.0,71156.0,0.31258325]
[1773459909935,0.0673851,71175.0,71157.0,0.0014]
[1773459910135,0.0673851,71175.0,71158.0,0.0014]
[1773459910332,0.0673851,71175.0,71160.0,0.07288025]
[1773459910641,0.0673851,71175.0,71161.0,0.0014]
[1773459910939,0.0673851,71175.0,71164.0,0.042149]
[1773459911135,0.0673851,71172.0,71150.0,0.042157]
[1773459911330,0.0673851,71169.0,71140.0,0.0014]
[1773459911532,0.042156,71154.0,71142.0,0.042162]
[1773459911737,0.042156,71153.0,71140.0,0.043563]
[1773459912034,0.042156,71153.0,71107.0,0.005]
[1773459912035,0.1095451,71147.0,71125.0,0.07026449]
[1773459912244,0.0673851,71147.0,71133.0,0.0014]
[1773459912535,0.0673851,71147.0,71125.0,0.07026449]
[1773459912736,0.0673851,71147.0,71134.0,0.0014]
[1773459912938,0.042161,71144.0,71134.0,0.0014]
[1773459913140,0.00010114,71143.0,71134.0,0.0014]
[1773459913930,0.00010114,71143.0,71131.0,0.04287093]
[1773459914141,0.00010114,71143.0,71132.0,0.0014]
[1773459914728,0.00010114,71143.0,71131.0,0.00070293]
[1773459914933,0.04226314,71143.0,71132.0,0.0014]
[1773459915133,0.10964824,71143.0,71131.0,0.00210293]
[1773459918740,0.06748624,71143.0,71131.0,0.00210293]
[1773459919137,0.10964824,71143.0,71131.0,0.00210293]
[1773459919336,0.042163,71142.0,71131.0,0.00210293]
[1773459920537,0.042164,71139.0,71126.0,0.0014]
[1773459922137,0.042164,71139.0,71126.0,0.043571]
[1773459923947,0.042163,71141.0,71127.0,0.042171]
[1773459925045,0.042164,71139.0,71127.0,0.042171]
[1773459928346,0.07156099,71140.0,71126.0,0.0014]
[1773459928740,0.07156099,71142.0,71126.0,0.0014]
[1773459929843,0.042166,71137.0,71126.0,0.0014]
[1773459930049,0.042167,71135.0,71123.0,0.042173]
[1773459930349,0.042168,71133.0,71121.0,0.042175]
[1773459930543,0.00013571,71132.0,71121.0,0.042175]
[1773459930848,0.04230371,71132.0,71121.0,0.042175]
[1773459931440,0.04230371,71132.0,71119.0,0.043576]
[1773459931637,0.042173,71125.0,71109.0,0.07205345]
[1773459931842,0.042173,71125.0,71113.0,0.042179]
[1773459932035,0.0014,71127.0,71107.0,0.0014]
[1773459932036,0.14457489,71123.0,71107.0,0.0014]
[1773459932243,0.11373599,71121.0,71107.0,0.0014]
[1773459932547,0.11373699,71120.0,71100.0,0.14506735]
[1773459932736,0.11373699,71120.0,71101.0,0.0014]
[1773459932940,0.11513699,71120.0,71100.0,0.14506735]
[1773459933243,0.07296099,71120.0,71101.0,0.0014]
[1773459933748,0.07296099,71120.0,71107.0,0.042183]
[1773459934748,0.07296099,71120.0,71108.0,0.042182]
[1773459936346,0.00013571,71122.0,71111.0,0.07205345]
[1773459936542,0.00013571,71122.0,71112.0,0.04218]
[1773459937742,0.00013571,71122.0,71113.0,0.042179]
[1773459944549,0.00013571,71122.0,71114.0,0.042179]
[1773459944852,0.00013571,71122.0,71114.0,0.11423245]
[1773459945153,0.042171,71128.0,71117.0,0.042177]
[1773459945353,0.0014,71127.0,71117.0,0.042177]
[1773459945556,0.0014,71127.0,71115.0,0.11423145]
[1773459945748,0.043572,71127.0,71115.0,0.11423145]
[1773459946149,0.042172,71126.0,71115.0,0.11423145]
[1773459948448,0.21211099,71125.0,71115.0,0.11423145]
[1773459948649,0.042172,71126.0,71115.0,0.11423145]
[1773459948848,0.21211099,71125.0,71115.0,0.11423145]
[1773459949154,0.042172,71126.0,71115.0,0.11423145]
[1773459950157,0.21217381,71125.0,71115.0,0.11423145]
[1773459950357,0.042172,71126.0,71115.0,0.11423145]
[1773459950553,0.21217381,71125.0,71115.0,0.11423145]
[1773459950749,0.042172,71126.0,71115.0,0.11423145]
[1773459950951,0.21217381,71125.0,71115.0,0.11423145]
[1773459951149,0.042172,71126.0,71115.0,0.11423145]
[1773459951449,0.21221078,71125.0,71115.0,0.11423145]
[1773459951646,0.042172,71126.0,71115.0,0.11423145]
[1773459951851,0.21221078,71125.0,71115.0,0.11423145]
[1773459952155,0.042172,71126.0,71115.0,0.11423145]
[1773459952356,0.21225492,71125.0,71115.0,0.11423145]
[1773459952560,0.042172,71126.0,71115.0,0.11423145]
[1773459952758,0.21225492,71125.0,71115.0,0.11423145]
[1773459953052,0.042172,71126.0,71115.0,0.11423145]
[1773459953257,0.21229933,71125.0,71115.0,0.11423145]
[1773459953559,0.042172,71126.0,71115.0,0.11423145]
[1773459953758,0.21229872,71125.0,71115.0,0.11423145]
[1773459954061,0.042172,71126.0,71115.0,0.11423145]
[1773459954357,0.21232851,71125.0,71115.0,0.11423145]
[1773459954553,0.21232851,71124.0,71115.0,0.11423145]
[1773459954758,0.042172,71126.0,71115.0,0.11423145]
[1773459954960,0.21232858,71125.0,71115.0,0.11423145]
[1773459955253,0.21232858,71124.0,71115.0,0.11423145]
[1773459955458,0.042172,71126.0,71115.0,0.11423145]
[1773459955654,0.21236276,71125.0,71115.0,0.11423145]
[1773459955857,0.21236276,71124.0,71115.0,0.07205345]
[1773459956056,0.25453576,71124.0,71115.0,0.07205345]
[1773459956252,0.21236276,71123.0,71115.0,0.07205345]
[1773459957259,0.21236276,71123.0,71113.0,0.042179]
[1773459958357,0.042173,71124.0,71113.0,0.042179]
[1773459959762,0.042174,71123.0,71111.0,0.11027431]
[1773459960555,0.042174,71123.0,71113.0,0.042179]
[1773459960959,0.0014,71127.0,71112.0,0.04218]
[1773459961159,0.21290812,71126.0,71111.0,0.042181]
[1773459961461,0.042174,71123.0,71112.0,0.04218]
[1773459961650,0.21290812,71122.0,71112.0,0.04218]
[1773459963548,0.21290812,71122.0,71113.0,0.042179]
[1773459966863,0.07028884,71134.0,71117.0,0.042177]
[1773459967050,0.0014,71133.0,71117.0,0.042177]
[1773459967865,0.042171,71127.0,71115.0,0.042178]
[1773459968256,0.042173,71125.0,71112.0,0.06809431]
[1773459968765,0.042173,71125.0,71115.0,0.042178]
[1773459970158,0.043572,71127.0,71115.0,0.042178]
[1773459972766,0.043572,71127.0,71116.0,0.042177]
[1773459975065,0.042172,71126.0,71116.0,0.042177]
[1773459978770,0.20621694,71125.0,71116.0,0.042177]
[1773459979068,0.20621694,71124.0,71116.0,0.042177]
[1773459979270,0.042172,71126.0,71116.0,0.042177]
[1773459979469,0.20621749,71125.0,71116.0,0.042177]
[1773459979672,0.20621749,71124.0,71116.0,0.042177]
[1773459979864,0.042172,71126.0,71116.0,0.042177]
[1773459980064,0.20621749,71125.0,71116.0,0.042177]
[1773459980268,0.20621749,71124.0,71116.0,0.042177]
[1773459980463,0.042172,71126.0,71116.0,0.042177]
[1773459980768,0.20621776,71125.0,71116.0,0.042177]
[1773459980966,0.20621776,71124.0,71116.0,0.042177]
[1773459981167,0.042172,71126.0,71116.0,0.042177]
[1773459981468,0.20621805,71125.0,71116.0,0.042177]
[1773459981667,0.20621805,71124.0,71116.0,0.042177]
[1773459981870,0.042172,71126.0,71116.0,0.042177]
[1773459982068,0.20621805,71125.0,71116.0,0.042177]
[1773459982269,0.20621805,71124.0,71116.0,0.042177]
[1773459982470,0.042172,71126.0,71116.0,0.042177]
[1773459982658,0.20621835,71125.0,71116.0,0.042177]
[1773459982863,0.20621835,71124.0,71116.0,0.042177]
[1773459983066,0.042172,71126.0,71116.0,0.042177]
[1773459983268,0.042168,71133.0,71123.0,0.07440465]
[1773459983568,0.0014,71132.0,71123.0,0.07440465]
[1773459983765,0.12436881,71147.0,71127.0,0.07440465]